bitfinex-derivatives/quotes_ETHF0:USTF0_20250520
["timestamp","ask_amount","ask_price","bid_price","bid_amount"]
[1747731174121,8.71080001,2533.3,2533.2,0.6720021]
[1747731175314,6.73705,2533.3,2533.2,2.6457521]
[1747731176605,3.52925,2533.3,2533.2,2.6457521]
[1747731176804,3.52925,2533.3,2533.2,3.4350321]
[1747731177312,0.78925,2533.3,2533.2,2.6457521]
[1747731177807,0.78925,2533.3,2533.2,10.6117521]
[1747731178915,0.87411477,2533.3,2533.2,10.6117521]
[1747731180017,0.78925,2533.3,2533.2,10.6117521]
[1747731180913,0.78925,2533.3,2533.2,11.31123282]
[1747731181219,0.87411477,2533.3,2533.2,3.34523282]
[1747731181608,0.87411477,2533.3,2533.2,1.37148282]
[1747731182116,8.79566478,2533.3,2533.2,0.51585282]
[1747731182320,13.79566478,2533.3,2533.2,2.82e-06]
[1747731182517,0.78931,2533.1,2533.0,9.53e-06]
[1747731182719,0.78934,2533.0,2532.9,3.7e-07]
[1747731183014,44.79714,2533.0,2532.9,3.7e-07]
[1747731183214,0.7894,2532.8,2532.7,7.8e-07]
[1747731183615,2.76354,2532.8,2532.7,7.8e-07]
[1747731184022,3.08009292,2532.8,2532.7,7.8e-07]
[1747731184321,5.82009292,2532.8,2532.7,7.8e-07]
[1747731185522,0.78968,2531.9,2531.8,7.966]
[1747731185716,0.78968,2531.9,2531.8,9.94084]
[1747731185922,0.78968,2531.9,2531.8,1.97484]
[1747731186124,3.52968,2531.9,2531.8,1.97484]
[1747731187022,2.74,2531.9,2531.8,2.76456]
[1747731187219,13.14755,2532.5,2531.8,2.76456]
[1747731187220,0.78968,2532.0,2531.9,0.78968]
[1747731187712,0.78968,2532.0,2531.9,2.764445]
[1747731187913,0.78968,2532.0,2531.9,1.974765]
[1747731189125,3.52968,2532.0,2531.9,1.974765]
[1747731189918,0.78975,2531.7,2531.6,11.96966722]
[1747731190127,0.78975,2531.7,2531.6,13.94466221]
[1747731190425,5.83772897,2532.2,2531.7,0.78971]
[1747731190426,0.78973,2531.8,2531.7,0.78971]
[1747731190627,0.78975,2531.7,2531.6,11.96966722]
[1747731191119,0.78975,2531.7,2531.6,5.97666221]
[1747731191826,0.78973,2531.8,2531.7,0.7897]
[1747731192228,0.78973,2531.8,2531.7,2.76461999]
[1747731192429,0.78973,2531.8,2531.7,1.97491999]
[1747731193027,0.78973,2531.8,2531.7,2.76466999]
[1747731193230,0.78971,2531.9,2531.8,0.78968]
[1747731193527,0.78972,2531.8,2531.7,2.76463999]
[1747731194325,0.78972,2531.8,2531.7,7.76463999]
[1747731194531,0.78967,2532.0,2531.9,0.78964]
[1747731194732,0.78967,2532.0,2531.9,8.75764]
[1747731194927,2.62985897,2532.3,2532.1,0.78959]
[1747731194928,0.78962,2532.2,2532.1,0.78959]
[1747731195425,0.78962,2532.2,2532.1,8.40419904]
[1747731195830,0.78962,2532.2,2532.1,7.61460904]
[1747731196431,0.78962,2532.2,2532.1,2.61460904]
[1747731196729,0.78962,2532.2,2532.1,3.40422904]
[1747731198730,0.78962,2532.2,2532.1,3.41258013]
[1747731200232,0.87448477,2532.2,2532.1,3.41258013]
[1747731201226,0.78962,2532.2,2532.1,3.41258013]
[1747731201434,0.78951,2532.6,2532.5,0.78946]
[1747731201828,0.78951,2532.6,2532.5,2.763755]
[1747731202231,0.78951,2532.6,2532.5,1.974295]
[1747731203031,0.78951,2532.6,2532.5,2.61429904]
[1747731204141,0.78951,2532.6,2532.5,1.974295]
[1747731204330,0.78951,2532.6,2532.5,2.763795]
[1747731206441,0.78951,2532.6,2532.5,1.974295]
[1747731207532,0.78951,2532.6,2532.5,9.939295]
[1747731208333,0.78951,2532.6,2532.5,10.728795]
[1747731208939,0.78951,2532.6,2532.5,9.939295]
[1747731209734,3.86373897,2532.9,2532.7,0.7894]
[1747731209940,0.78943,2532.8,2532.7,0.7894]
[1747731210134,0.65593897,2532.9,2532.8,0.7894]
[1747731210334,1.44530897,2532.9,2532.8,0.7894]
[1747731210529,1.44530897,2532.9,2532.8,2.76346]
[1747731211138,1.44530897,2532.9,2532.8,1.97406]
[1747731211340,1.44530897,2532.9,2532.8,2.61511704]
[1747731211535,1.44530897,2532.9,2532.8,10.58011704]
[1747731211730,3.41936898,2532.9,2532.8,0.64105704]
[1747731211931,6.62716898,2532.9,2532.8,0.64105704]
[1747731212239,9.36716898,2532.9,2532.8,0.64105704]
[1747731212437,50.16716898,2532.9,2532.8,0.64105704]
[1747731212640,1.97355,2532.8,2532.3,7.965]
[1747731213041,0.78953,2532.4,2532.3,7.965]
[1747731213542,0.78953,2532.4,2532.3,9.93944999]
[1747731214338,2.76398,2532.4,2532.3,0.63110732]
[1747731215234,5.50398,2532.4,2532.3,0.63110732]
[1747731215942,0.78959,2532.2,2532.1,0.00835109]
[1747731216144,6.73739,2532.2,2532.1,0.00835109]
[1747731216346,8.711995,2532.2,2532.1,0.00835109]
[1747731219235,9.36793397,2532.2,2532.1,0.00835109]
[1747731222150,8.711995,2532.2,2532.1,0.00835109]
[1747731228370,9.69590345,2532.2,2532.1,0.00835109]
[1747731230868,8.79685977,2532.2,2532.1,0.00835109]
[1747731231668,8.711995,2532.2,2532.1,0.00835109]
[1747731232673,8.79685977,2532.2,2532.1,0.00835109]
[1747731233670,8.711995,2532.2,2532.1,0.00835109]
[1747731236071,6.73739,2532.2,2532.1,0.00835109]
[1747731236275,8.711995,2532.2,2532.1,0.00835109]
[1747731236774,6.73739,2532.2,2532.1,1.98295609]
[1747731237175,3.99739,2532.2,2532.1,1.98295609]
[1747731237577,0.78959,2532.2,2532.1,1.98295609]
[1747731238069,3.99739,2532.2,2532.1,0.00835109]
[1747731238277,6.73739,2532.2,2532.1,0.00835109]
[1747731239371,8.711995,2532.2,2532.1,0.00835109]
[1747731239772,9.36845297,2532.2,2532.1,0.00835109]
[1747731241867,8.711995,2532.2,2532.1,0.00835109]
[1747731242172,9.69668195,2532.2,2532.1,0.00835109]
[1747731244878,9.78154672,2532.2,2532.1,0.00835109]
[1747731245877,9.69668195,2532.2,2532.1,0.00835109]
[1747731246780,9.69668195,2532.2,2532.1,0.63073577]
[1747731248983,8.711995,2532.2,2532.1,0.63073577]
[1747731250384,8.711995,2532.2,2532.1,5.77e-06]
[1747731250882,9.69668195,2532.2,2532.1,5.77e-06]
[1747731251383,1.97411,2532.1,2531.7,0.66203166]
[1747731251583,0.78971,2531.8,2531.7,0.66203166]
[1747731252281,3.52971,2531.8,2531.7,0.66203166]
[1747731253179,0.78971,2531.8,2531.7,0.66203166]
[1747731254687,0.78975,2531.7,2531.6,0.66611888]
[1747731255187,0.78975,2531.7,2531.6,2.64111387]
[1747731255485,0.78975,2531.7,2531.6,0.66611888]
[1747731256082,0.78975,2531.7,2531.6,0.00408722]
[1747731256386,0.78975,2531.7,2531.6,1.97908221]
[1747731258087,1.77443695,2531.7,2531.6,1.97908221]
[1747731259687,1.77443695,2531.7,2531.6,2.76886221]
[1747731259987,1.77443695,2531.7,2531.6,1.97908221]
[1747731260688,1.77443695,2531.7,2531.6,2.76886221]
[1747731260989,1.77443695,2531.7,2531.6,1.97908221]
[1747731262090,1.77443695,2531.7,2531.6,2.76886221]
[1747731262290,1.77443695,2531.7,2531.6,1.97908221]
[1747731263287,1.77443695,2531.7,2531.6,2.76886221]
[1747731263789,0.78975,2531.7,2531.6,1.97908221]
[1747731263986,0.78975,2531.7,2531.6,2.59566898]
[1747731264596,0.78975,2531.7,2531.6,3.38544898]
[1747731264892,0.78975,2531.7,2531.6,2.59566898]
[1747731265691,0.78975,2531.7,2531.6,3.38544898]
[1747731266894,0.78972,2531.8,2531.7,0.78971]
[1747731267396,0.78972,2531.8,2531.7,2.76462999]
[1747731268799,1.77809223,2531.8,2531.7,2.76462999]
[1747731268997,1.77809223,2531.8,2531.7,4.04324842]
[1747731272598,1.77809223,2531.8,2531.7,3.38121676]
[1747731276108,0.78972,2531.8,2531.7,3.38121676]
[1747731277306,0.78972,2531.8,2531.7,4.03240803]
[1747731278506,1.77809223,2531.8,2531.7,4.03240803]
[1747731278701,3.75301223,2531.8,2531.7,1.26777804]
[1747731279209,6.96081223,2531.8,2531.7,1.26777804]
[1747731280805,19.91581223,2531.8,2531.7,0.28517804]
[1747731281098,0.78981,2531.5,2531.4,0.57182533]
[1747731281306,44.79761,2531.5,2531.4,1.09e-06]
[1747731281604,0.78984,2531.4,2531.3,6.42e-06]
[1747731281805,0.78993,2531.1,2531.0,0.8318421]
[1747731282004,0.78996,2531.0,2530.9,1.0732853]
[1747731282203,11.48496,2531.0,2530.9,0.1187153]
[1747731282406,18.460505,2531.0,2530.9,5.3e-06]
[1747731283310,18.77004747,2531.0,2530.9,5.3e-06]
[1747731283511,1.975,2530.9,2530.2,3.2078]
[1747731283707,0.79018,2530.3,2530.2,3.2078]
[1747731284109,0.79018,2530.3,2530.2,5.18389]
[1747731284412,0.79013,2530.5,2530.4,0.79014]
[1747731284613,0.7901,2530.6,2530.4,0.79014]
[1747731285004,0.79008,2530.7,2530.5,0.79011]
[1747731285205,4.77669743,2530.9,2530.4,9.931775]
[1747731285417,4.77669743,2530.9,2530.8,0.79003]
[1747731285810,3.2078,2530.9,2530.8,2.76565]
[1747731286116,3.2078,2530.9,2530.8,5.50565]
[1747731287413,3.2078,2530.9,2530.8,13.46165]
[1747731289321,0.78995,2531.1,2531.0,0.78993]
[1747731289811,0.78995,2531.1,2531.0,2.765395]
[1747731293717,0.78995,2531.1,2531.0,1.975465]
[1747731294213,0.78996,2531.0,2530.9,0.78998]
[1747731294619,0.78996,2531.0,2530.9,2.76552499]
[1747731294824,0.79,2530.9,2530.8,3.2078]
[1747731295023,0.79,2530.9,2530.8,3.9978]
[1747731295209,0.79,2530.9,2530.8,5.97342]
[1747731295923,0.79,2530.9,2530.8,3.9978]
[1747731296817,0.79,2530.9,2530.8,5.97342]
[1747731297516,0.79,2530.9,2530.8,2.76562]
[1747731299924,0.78997,2531.1,2531.0,0.78993]
[1747731300322,0.78997,2531.1,2531.0,2.765395]
[1747731305229,0.78997,2531.1,2531.0,0.78993]
[1747731306024,0.79,2530.9,2530.8,8.739]
[1747731306424,0.79,2530.9,2530.8,10.71462]
[1747731307938,0.78999,2531.0,2530.9,0.78995]
[1747731308432,3.2078,2531.2,2531.1,0.78993]
[1747731308628,3.9977,2531.2,2531.1,0.78993]
[1747731308829,3.2078,2531.2,2531.1,2.765315]
[1747731309531,3.9977,2531.2,2531.1,2.765315]
[1747731311227,0.78997,2531.0,2530.9,3.2078]
[1747731311428,0.78997,2531.0,2530.9,7.949]
[1747731311727,0.78997,2531.0,2530.9,9.92454499]
[1747731313334,0.78997,2531.0,2530.9,10.71454499]
[1747731314237,0.78996,2531.1,2531.0,0.78992]
[1747731314633,2.76542501,2531.1,2531.0,0.78992]
[1747731321045,0.78997,2531.0,2530.9,8.73898]
[1747731321442,0.78997,2531.0,2530.9,10.71452499]
[1747731321742,0.78997,2531.0,2530.9,8.73898]
[1747731321945,0.78997,2531.0,2530.9,10.71452499]
[1747731322141,0.78997,2531.0,2530.9,9.92454499]
[1747731322438,0.79,2530.9,2530.8,0.83736977]
[1747731322838,2.76562,2530.9,2530.8,0.83736977]
[1747731323047,0.79006,2530.7,2530.6,0.79008]
[1747731323442,2.765835,2530.7,2530.6,0.79008]
[1747731324347,0.79002,2530.9,2530.8,0.79003]
[1747731324846,3.34362481,2531.0,2530.9,0.79]
[1747731325545,3.34362481,2531.0,2530.9,2.76554499]
[1747731325546,2.55363481,2531.0,2530.9,2.76554499]
[1747731325749,2.55363481,2531.0,2530.9,7.76554499]
[1747731326249,2.55363481,2531.0,2530.9,10.50554499]
[1747731326546,2.55363481,2531.0,2530.9,5.50554499]
[1747731326848,0.98473738,2531.0,2530.9,6.34291476]
[1747731327753,0.78992,2531.2,2531.1,0.78994]
[1747731328050,0.78992,2531.2,2531.1,10.709325]
[1747731328946,0.78992,2531.2,2531.1,9.919385]
[1747731330451,0.78997,2531.0,2530.9,0.83736977]
[1747731330652,0.78997,2531.0,2530.9,8.78136977]
[1747731330843,0.78997,2531.0,2530.9,10.75691476]
[1747731331044,0.78997,2531.0,2530.9,9.91954499]
[1747731331351,0.78997,2531.0,2530.9,10.70951499]
[1747731331951,0.78996,2531.1,2531.0,0.78993]
[1747731333347,4.19845816,2531.3,2531.2,0.7899]
[1747731333645,0.00592078,2531.3,2531.2,0.7899]
[1747731333837,0.00592078,2531.3,2531.2,2.76521]
[1747731334237,0.79579078,2531.3,2531.2,2.76521]
[1747731334944,0.00592078,2531.3,2531.2,2.76521]
[1747731335756,0.79579078,2531.3,2531.2,2.76521]
[1747731335951,0.00592078,2531.3,2531.2,2.76521]
[1747731336350,7.8e-07,2531.3,2531.2,2.76521]
[1747731336650,1.41e-06,2531.4,2531.3,0.78987]
[1747731336850,1.41e-06,2531.4,2531.3,11.94167]
[1747731337050,1.41e-06,2531.4,2531.3,18.9169]
[1747731337354,1.41e-06,2531.4,2531.3,21.6569]
[1747731337856,0.37469536,2531.7,2531.6,0.78978]
[1747731338148,1.12636432,2532.0,2531.6,12.88558]
[1747731338354,1.5466168,2532.4,2532.3,0.78956]
[1747731338552,1.5466168,2532.4,2532.3,11.94136]
[1747731338754,1.5466168,2532.4,2532.3,13.91580999]
[1747731339147,1.5466168,2532.4,2532.3,16.65580999]
[1747731339651,1.56889743,2532.5,2532.4,0.78953]
[1747731339853,0.00592078,2532.6,2532.5,0.7895]
[1747731340358,0.00592078,2532.6,2532.5,2.763795]
[1747731341048,0.00592078,2532.6,2532.5,5.503795]
[1747731341559,2.76968579,2532.6,2532.5,10.682]
[1747731341857,5.97748579,2532.6,2532.5,10.682]
[1747731342052,2.76968579,2532.6,2532.5,10.682]
[1747731342357,2.76968579,2532.6,2532.5,7.942]
[1747731343054,2.76968579,2532.6,2532.5,8.7315]
[1747731344052,2.76968579,2532.6,2532.5,7.942]
[1747731344255,5.50968579,2532.6,2532.5,8.7315]
[1747731344861,5.50968579,2532.6,2532.5,0.7895]
[1747731345057,2.76968579,2532.6,2532.5,0.7895]
[1747731345362,0.00592078,2532.6,2532.5,0.7895]
[1747731345860,0.00592078,2532.6,2532.5,2.763795]
[1747731348263,0.00592078,2532.6,2532.5,8.711595]
[1747731353276,0.00592078,2532.6,2532.5,5.971595]
[1747731354179,0.00592078,2532.6,2532.5,8.711595]
[1747731357174,0.00592078,2532.6,2532.5,5.971595]
[1747731357679,0.09078555,2532.6,2532.5,5.971595]
[1747731358073,0.09078555,2532.6,2532.5,8.711595]
[1747731358777,0.00592078,2532.6,2532.5,8.711595]
[1747731359380,0.79539078,2532.6,2532.5,8.711595]
[1747731359576,0.79539078,2532.6,2532.5,6.7373]
[1747731359874,2.76968579,2532.6,2532.5,6.7373]
[1747731360078,2.76968579,2532.6,2532.5,3.9973]
[1747731360475,1.98021579,2532.6,2532.5,3.9973]
[1747731361676,2.76968579,2532.6,2532.5,3.9973]
[1747731361881,2.76968579,2532.6,2532.5,0.7895]
[1747731362084,0.78956,2532.5,2532.4,0.7895]
[1747731362580,0.78956,2532.4,2532.2,3.81768236]
[1747731362780,0.78956,2532.4,2532.3,0.78953]
[1747731362981,2.76405,2532.4,2532.3,0.78953]
[1747731364583,1.97449,2532.4,2532.3,0.78953]
[1747731365483,2.76402,2532.4,2532.3,0.78953]
[1747731365682,1.97449,2532.4,2532.3,0.78953]
[1747731368685,2.76402,2532.4,2532.3,1.39941236]
[1747731369281,1.97449,2532.4,2532.3,1.39941236]
[1747731370078,2.76402,2532.4,2532.3,1.39941236]
[1747731370282,1.97449,2532.4,2532.3,1.39941236]
[1747731377690,0.78952,2532.5,2532.4,0.78953]
[1747731377890,2.76393,2532.5,2532.4,0.78953]
[1747731378483,1.97441,2532.5,2532.4,0.78953]
[1747731379791,2.76391,2532.5,2532.4,0.78953]
[1747731381791,2.763875,2532.5,2532.4,0.78953]
[1747731382691,0.78953,2532.4,2532.3,1.39941236]
[1747731383192,7.76398,2532.4,2532.3,0.60988236]
[1747731383492,0.78956,2532.3,2532.2,0.60988236]
[1747731383790,3.99736,2532.3,2532.2,0.60988236]
[1747731383992,5.97189001,2532.3,2532.2,0.60988236]
[1747731384393,5.97189001,2532.3,2532.2,1.39947236]
[1747731384992,0.7896,2532.2,2532.1,0.78961]
[1747731385396,2.764205,2532.2,2532.1,0.78961]
[1747731385692,0.78966,2532.1,2532.0,0.78964]
[1747731386301,2.764345,2532.1,2532.0,0.78964]
[1747731386696,0.7897,2532.0,2531.9,0.78967]
[1747731386899,0.7897,2531.9,2531.8,1.39957236]
[1747731388198,0.7897,2531.9,2531.8,0.78969]
[1747731388397,0.7897,2531.9,2531.8,2.76453]
[1747731388597,0.7897,2531.9,2531.8,0.78969]
[1747731391096,2.76454,2531.9,2531.8,0.78969]
[1747731391491,1.97484,2531.9,2531.7,0.60988236]
[1747731391796,0.78973,2531.8,2531.7,0.60988236]
[1747731391999,0.78973,2531.8,2531.7,1.39964236]
[1747731392189,2.76465,2531.8,2531.7,0.60988236]
[1747731392394,0.78976,2531.7,2531.6,3.99757]
[1747731392806,2.764755,2531.7,2531.6,3.99757]
[1747731396909,0.78985,2531.5,2531.4,0.78982]
[1747731397307,0.78985,2531.5,2531.4,2.764975]
[1747731398099,0.78981,2531.6,2531.5,0.78976]
[1747731398405,3.42071704,2531.9,2531.5,1.97455]
[1747731398599,0.65599204,2531.9,2531.8,0.78973]
[1747731399001,0.65599204,2531.9,2531.8,2.76457]
[1747731400399,0.78967,2532.0,2531.9,0.7897]
[1747731400604,0.78965,2532.2,2532.1,0.78961]
[1747731400912,0.78968,2532.1,2532.0,0.78964]
[1747731401310,2.764365,2532.1,2532.0,0.78964]
[1747731401613,0.78972,2532.0,2531.9,0.78967]
[1747731402012,2.764485,2532.0,2531.9,0.78967]
[1747731406612,0.78973,2531.9,2531.8,0.7897]
[1747731407014,0.65599204,2532.2,2532.0,0.78963]
[1747731407314,2.63071704,2532.2,2532.1,0.78963]
[1747731407518,0.65599204,2532.2,2532.1,0.78963]
[1747731407816,2.63059704,2532.2,2532.1,0.78963]
[1747731408207,3.42019704,2532.2,2532.1,0.78963]
[1747731408616,2.764205,2532.2,2532.1,0.78963]
[1747731410614,0.78967,2532.1,2532.0,0.78963]
[1747731411920,2.764355,2532.1,2532.0,0.78963]
[1747731413215,3.86379204,2532.3,2532.2,0.7896]
[1747731413418,0.65599204,2532.3,2532.2,2.76413]
[1747731414015,2.55061671,2532.4,2532.3,0.78957]
[1747731414223,0.98171928,2532.4,2532.3,0.78957]
[1747731414614,0.98171928,2532.4,2532.3,2.76401999]
[1747731414814,1.77125928,2532.4,2532.3,2.76401999]
[1747731415014,1.77125928,2532.4,2532.3,0.78957]
[1747731415720,1.77125928,2532.4,2532.3,1.35671559]
[1747731416718,0.78954,2532.4,2532.3,1.35671559]
[1747731417317,0.78953,2532.5,2532.4,0.78951]
[1747731417718,2.763905,2532.5,2532.4,0.78951]
[1747731418527,0.78957,2532.4,2532.3,0.78954]
[1747731419019,2.76402,2532.4,2532.3,0.78954]
[1747731421329,1.97445,2532.4,2532.3,0.78954]
[1747731421529,1.45136883,2532.6,2532.5,0.78951]
[1747731421738,3.42574383,2532.6,2532.5,0.78951]
[1747731426233,0.66186883,2532.6,2532.5,2.763805]
[1747731426636,0.66186883,2532.6,2532.5,5.971605]
[1747731427238,0.66186883,2532.6,2532.5,8.711605]
[1747731428636,0.66186883,2532.6,2532.5,9.52685367]
[1747731430134,0.00592078,2532.6,2532.5,9.52685367]
[1747731431639,0.09078555,2532.6,2532.5,9.52685367]
[1747731433233,0.65594805,2533.1,2533.0,0.78935]
[1747731433542,3.86374805,2533.3,2533.2,0.78929]
[1747731434039,5.83749806,2533.3,2533.2,0.78929]
[1747731434530,0.65594805,2533.3,2533.2,5.97084]
[1747731435132,1.30785315,2533.7,2533.4,0.78922]
[1747731435335,1.56889743,2533.9,2533.8,0.78909]
[1747731435841,1.56889743,2533.9,2533.8,2.76237]
[1747731436748,0.00592078,2534.1,2533.8,4.5006569]
[1747731436939,0.00592078,2534.1,2533.9,3.2078]
[1747731437237,0.00592078,2534.1,2534.0,0.78903]
[1747731437636,0.00592078,2534.1,2534.0,2.762155]
[1747731439345,0.78903,2534.0,2533.9,3.99683]
[1747731439639,0.78912,2533.7,2533.6,3.7624569]
[1747731440147,2.76256,2533.7,2533.6,1.3438169]
[1747731441140,2.76256,2533.7,2533.6,0.78916]
[1747731441749,0.09078555,2534.1,2533.8,0.78905]
[1747731441939,0.78906,2534.0,2533.9,0.78904]
[1747731442243,0.78908,2533.9,2533.8,0.78907]
[1747731442845,2.76236001,2533.9,2533.8,0.78907]
[1747731443141,1.97328001,2533.9,2533.8,0.78907]
[1747731443444,0.00592078,2534.1,2534.0,0.78903]
[1747731443842,0.09078555,2534.1,2534.0,2.762155]
[1747731445146,0.00592078,2534.1,2534.0,2.762155]
[1747731446145,0.09078555,2534.1,2534.0,2.762155]
[1747731460860,0.09078555,2534.1,2534.0,3.3168119]
[1747731463150,0.09078555,2534.1,2534.0,0.5546569]
[1747731463357,2.85291055,2534.1,2534.0,0.5546569]
[1747731463952,2.85291055,2534.1,2534.0,0.78903]
[1747731464151,5.59291055,2534.1,2534.0,0.78903]
[1747731464449,4.80391055,2534.1,2534.0,0.78903]
[1747731465356,2.85291055,2534.1,2534.0,0.78903]
[1747731465653,2.06391055,2534.1,2534.0,0.78903]
[1747731465856,2.06391055,2534.1,2534.0,3.99683]
[1747731466259,0.00592078,2534.1,2534.0,5.969955]
[1747731467255,0.09078555,2534.1,2534.0,5.969955]
[1747731468056,0.09078555,2534.1,2534.0,6.78520367]
[1747731468257,0.00592078,2534.1,2534.0,6.78520367]
[1747731471359,0.09078555,2534.1,2534.0,6.78520367]
[1747731473451,0.00592078,2534.1,2534.0,6.78520367]
[1747731473948,0.00592078,2534.1,2534.0,4.81207867]
[1747731474154,0.00592078,2534.1,2534.0,3.99683]
[1747731474354,0.00592078,2534.1,2534.0,5.969955]
[1747731474554,0.00592078,2534.1,2534.0,3.99683]
[1747731474961,0.00592078,2534.1,2534.0,5.969955]
[1747731477260,1.97904578,2534.1,2534.0,3.99683]
[1747731477456,2.76804578,2534.1,2534.0,0.78903]
[1747731479366,1.97904578,2534.1,2534.0,0.78903]
[1747731479759,0.00592078,2534.1,2534.0,1.3137216]
[1747731480057,1.97904578,2534.1,2534.0,1.3137216]
[1747731480559,2.76804578,2534.1,2534.0,0.5246916]
[1747731480764,7.76804578,2534.1,2534.0,0.5246916]
[1747731481265,10.50804578,2534.1,2534.0,0.5246916]
[1747731481962,5.50804578,2534.1,2534.0,1.3137216]
[1747731482265,2.76804578,2534.1,2534.0,0.78903]
[1747731482666,1.97904578,2534.1,2534.0,0.78903]
[1747731482866,0.00592078,2534.1,2534.0,2.762155]
[1747731483456,0.00592078,2534.1,2534.0,3.2868466]
[1747731484267,0.00592078,2534.1,2534.0,1.3137216]
[1747731484562,2.06391055,2534.1,2534.0,1.3137216]
[1747731484768,2.06391055,2534.1,2534.0,1.48867203]
[1747731485061,2.85291055,2534.1,2534.0,1.48867203]
[1747731485267,2.06391055,2534.1,2534.0,1.48867203]
[1747731485768,0.09078555,2534.1,2534.0,1.48867203]
[1747731486368,0.09078555,2534.1,2534.0,3.46179703]
[1747731486573,0.00592078,2534.1,2534.0,3.46179703]
[1747731487772,0.00592078,2534.1,2534.0,3.8117005]
[1747731491174,0.78882,2534.7,2534.6,0.78885]
[1747731491567,1.30872739,2534.9,2534.6,5.18046]
[1747731491774,0.78881,2534.8,2534.7,0.78878]
[1747731492170,5.50139,2534.8,2534.7,0.78878]
[1747731493379,4.71258,2534.8,2534.7,0.78878]
[1747731494873,5.50136,2534.8,2534.7,0.78878]
[1747731495582,0.78881,2534.7,2534.6,0.51265673]
[1747731495976,7.76147,2534.7,2534.6,0.51265673]
[1747731496184,10.50147,2534.7,2534.6,0.51265673]
[1747731496376,5.50147,2534.7,2534.6,0.51265673]
[1747731496884,5.50147,2534.7,2534.6,1.30150673]
[1747731497086,0.78885,2534.6,2534.5,0.00592078]
[1747731497485,2.76158501,2534.6,2534.5,0.00592078]
[1747731497680,0.78885,2534.6,2534.5,0.79480078]
[1747731497984,2.76158501,2534.6,2534.5,0.79480078]
[1747731499186,5.50158501,2534.6,2534.5,0.79480078]
[1747731500286,5.50158501,2534.6,2534.5,0.00592078]
[1747731501287,5.50158501,2534.6,2534.5,0.79480078]
[1747731502091,5.50158501,2534.6,2534.5,0.00592078]
[1747731503491,5.50158501,2534.6,2534.5,0.79480078]
[1747731504191,2.76158501,2534.6,2534.5,0.79480078]
[1747731504993,2.76158501,2534.6,2534.5,0.00592078]
[1747731505196,0.78894,2534.3,2534.2,0.51265673]
[1747731505395,5.18004,2534.5,2534.0,0.17094637]
[1747731505700,3.99679,2534.1,2534.0,0.17094637]
[1747731506089,10.969915,2534.1,2534.0,0.17094637]
[1747731506592,5.969915,2534.1,2534.0,0.17094637]
[1747731506786,5.180925,2534.1,2533.8,0.79500078]
[1747731506990,0.78906,2533.9,2533.8,0.00592078]
[1747731507191,2.76234001,2533.9,2533.8,0.00592078]
[1747731508200,2.76234001,2533.9,2533.8,0.79501078]
[1747731509499,0.78904,2534.0,2533.9,0.78902]
[1747731509889,2.762245,2534.0,2533.9,0.78902]
[1747731510088,0.78906,2533.9,2533.8,0.00592078]
[1747731510601,0.78906,2533.9,2533.8,0.79501078]
[1747731510801,0.78906,2533.9,2533.8,2.76829078]
[1747731511101,0.78906,2534.0,2533.9,0.78903]
[1747731511304,0.78901,2534.1,2534.0,0.789]
[1747731511693,2.762135,2534.1,2534.0,0.789]
[1747731512300,0.78906,2534.0,2533.9,0.78904]
[1747731512895,2.762265,2534.0,2533.9,0.78904]
[1747731513503,1.973205,2534.0,2533.9,0.78904]
[1747731513697,2.762235,2534.0,2533.9,0.78904]
[1747731514404,1.973205,2534.0,2533.9,0.78904]
[1747731514600,2.762235,2534.0,2533.9,0.78904]
[1747731515098,0.78903,2534.0,2533.9,0.78904]
[1747731515301,2.762235,2534.0,2533.9,0.78904]
[1747731515502,0.78906,2533.9,2533.8,0.00592078]
[1747731516203,0.78906,2533.9,2533.8,0.79501078]
[1747731516400,2.76234001,2533.9,2533.8,0.79501078]
[1747731517095,0.78906,2533.9,2533.8,0.79501078]
[1747731517498,2.76234001,2533.9,2533.8,0.00592078]
[1747731517696,7.76234001,2533.9,2533.8,0.00592078]
[1747731518202,10.50234001,2533.9,2533.8,0.00592078]
[1747731518801,0.78928,2533.2,2533.1,0.78928]
[1747731519208,2.76310501,2533.2,2533.1,0.78928]
[1747731519401,0.78931,2533.1,2533.0,3.2078]
[1747731519597,0.78931,2533.1,2533.0,3.99714]
[1747731519797,0.78931,2533.1,2533.0,5.97104499]
[1747731519996,0.78931,2533.1,2533.0,3.99714]
[1747731520196,0.78928,2533.2,2533.1,0.78928]
[1747731520694,1.97382501,2533.2,2533.1,0.78928]
[1747731520896,0.00592078,2533.3,2533.2,0.78928]
[1747731521407,0.00592078,2533.3,2533.2,2.76303]
[1747731526698,0.79517078,2533.3,2533.2,2.76303]
[1747731526905,0.00592078,2533.3,2533.2,2.76303]
[1747731528007,0.79517078,2533.3,2533.2,2.76303]
[1747731528195,0.00592078,2533.3,2533.2,2.76303]
[1747731528601,0.79517078,2533.3,2533.0,3.2078]
[1747731528809,0.79517078,2533.3,2533.2,0.78928]
[1747731529304,0.88003555,2533.3,2533.2,0.78928]
[1747731529501,0.7893,2533.2,2533.1,0.78929]
[1747731530010,0.09078555,2533.3,2533.2,0.78928]
[1747731530213,0.00592078,2533.3,2533.2,0.78928]
[1747731530516,1.97967079,2533.3,2533.2,0.78928]
[1747731531108,0.00592078,2533.3,2533.2,0.78928]
[1747731531614,0.79517078,2533.3,2533.2,0.78928]
[1747731532797,2.76892079,2533.3,2533.2,0.78928]
[1747731533804,0.7893,2533.2,2533.1,0.78929]
[1747731534202,0.7893,2533.2,2533.1,2.763115]
[1747731534609,0.7893,2533.2,2533.1,0.78929]
[1747731535604,0.00592078,2533.3,2533.2,0.78927]
[1747731535913,0.79516078,2533.3,2533.2,0.78927]
[1747731536213,2.76891079,2533.3,2533.2,0.78927]
[1747731539110,0.7893,2533.2,2533.1,0.78928]
[1747731539306,0.7893,2533.1,2533.0,3.99713]
[1747731539615,0.7893,2533.1,2533.0,3.2078]
[1747731539812,2.763205,2533.1,2533.0,3.2078]
[1747731540314,5.503205,2533.1,2533.0,3.2078]
[1747731540915,5.503205,2533.1,2533.0,3.99714]
[1747731541117,2.763205,2533.1,2533.0,3.99714]
[1747731543220,5.503205,2533.1,2533.0,3.2078]
[1747731544221,2.763205,2533.1,2533.0,3.2078]